Workbook

Sheet Cover
B3: Excel + VBA
B4: für Controller
B7: Kapitel | C7: 7
B8: Thema | C8: Strategisches Prozess-Controlling
B10: Inhalt | C10: Deckungsbeitragsrechnung mehrstufig
B18: Version | C18: 2.0
B19: Autor | C19: Harald Nahrstedt
B20: Datum | C20: 2023-08-03
B23: Springer Verlag

Sheet Produkt A
B1: Produktionsbereich X
B2: Produkt A | C2: Wert | D2: Anteil
B3: Umsatzerlöse | C3: 312000 | D3: 1
A4: - | B4: variable Kosten | C4: -9000 | D4: =variable_Kosten/Umsatzerlöse -> -0.02884615385
A5: = | B5: Nettoumsatz | C5: =Umsatzerlöse+variable_Kosten -> 303000 | D5: =Nettoumsatz/Umsatzerlöse -> 0.9711538462
A6: - | B6: direkte Herstellkosten | C6: -120000 | D6: =direkte_Herstellkosten/Umsatzerlöse -> -0.3846153846
A7: = | B7: Deckungsbeitrag 1 | C7: =Nettoumsatz+direkte_Herstellkosten -> 183000 | D7: =Deckungsbeitrag_1/Umsatzerlöse -> 0.5865384615
A8: - | B8: direkte Gemeinkosten | C8: -22500 | D8: =direkte_Gemeinkosten/Umsatzerlöse -> -0.07211538462
A9: = | B9: Deckungsbeitrag 2 | C9: =Deckungsbeitrag_1+direkte_Gemeinkosten -> 160500 | D9: =Deckungsbeitrag_2/Umsatzerlöse -> 0.5144230769

Sheet Produkt B
B1: Produktionsbereich X
B2: Produkt B | C2: Wert | D2: Anteil
B3: Umsatzerlöse | C3: 322000 | D3: 1
A4: - | B4: variable Kosten | C4: -23600 | D4: =variable_Kosten/Umsatzerlöse -> -0.07329192547
A5: = | B5: Nettoumsatz | C5: =Umsatzerlöse+variable_Kosten -> 298400 | D5: =Nettoumsatz/Umsatzerlöse -> 0.9267080745
A6: - | B6: direkte Herstellkosten | C6: -165000 | D6: =direkte_Herstellkosten/Umsatzerlöse -> -0.5124223602
A7: = | B7: Deckungsbeitrag 1 | C7: =Nettoumsatz+direkte_Herstellkosten -> 133400 | D7: =Deckungsbeitrag_1/Umsatzerlöse -> 0.4142857143
A8: - | B8: direkte Gemeinkosten | C8: -21800 | D8: =direkte_Gemeinkosten/Umsatzerlöse -> -0.06770186335
A9: = | B9: Deckungsbeitrag 2 | C9: =Deckungsbeitrag_1+direkte_Gemeinkosten -> 111600 | D9: =Deckungsbeitrag_2/Umsatzerlöse -> 0.3465838509

Sheet Produkt C
B1: Produktionsbereich Y
B2: Produkt C | C2: Wert | D2: Anteil
B3: Umsatzerlöse | C3: 265000 | D3: 1
A4: - | B4: variable Kosten | C4: -114000 | D4: =variable_Kosten/Umsatzerlöse -> -0.4301886792
A5: = | B5: Nettoumsatz | C5: =Umsatzerlöse+variable_Kosten -> 151000 | D5: =Nettoumsatz/Umsatzerlöse -> 0.5698113208
A6: - | B6: direkte Herstellkosten | C6: -16800 | D6: =direkte_Herstellkosten/Umsatzerlöse -> -0.06339622642
A7: = | B7: Deckungsbeitrag 1 | C7: =Nettoumsatz+direkte_Herstellkosten -> 134200 | D7: =Deckungsbeitrag_1/Umsatzerlöse -> 0.5064150943
A8: - | B8: direkte Gemeinkosten | C8: -20800 | D8: =direkte_Gemeinkosten/Umsatzerlöse -> -0.07849056604
A9: = | B9: Deckungsbeitrag 2 | C9: =Deckungsbeitrag_1+direkte_Gemeinkosten -> 113400 | D9: =Deckungsbeitrag_2/Umsatzerlöse -> 0.4279245283

Sheet DBR Produktionsbereich X
B1: Produktionsbereich X | C1: Wert | D1: Anteil
B2: Umsatzerlöse | C2: 634000 | D2: 1
A3: - | B3: variable Kosten | C3: -32600 | D3: =C3/C$2 -> -0.05141955836
A4: = | B4: Nettoumsatz | C4: 601400 | D4: =C4/C$2 -> 0.9485804416
A5: - | B5: direkte Herstellkosten | C5: -285000 | D5: -0.4495268139
A6: = | B6: Deckungsbeitrag 1 | C6: 316400 | D6: 0.4990536278
A7: - | B7: produktfixe Kosten | C7: -44300 | D7: -0.06987381703
A8: = | B8: Deckungsbeitrag 2 | C8: 272100 | D8: 0.4291798107
A9: - | B9: produktgruppenfixe Kosten | C9: -26700 | D9: -0.04211356467
A10: = | B10: Deckungsbeitrag 3 | C10: =C8+C9 -> 245400 | D10: 0.3870662461
A11: - | B11: bereichsfixe Kosten | C11: -19000 | D11: -0.02996845426
A12: = | B12: Deckungsbeitrag 4 | C12: =C10+C11 -> 226400 | D12: 0.3570977918

Sheet DBR Produktionsbereich Y
B1: Produktionsbereich Y | C1: Wert | D1: Anteil
B2: Umsatzerlöse | C2: 265000 | D2: 1
A3: - | B3: variable Kosten | C3: -114000 | D3: =C3/C$2 -> -0.4301886792
A4: = | B4: Nettoumsatz | C4: 151000 | D4: =C4/C$2 -> 0.5698113208
A5: - | B5: direkte Herstellkosten | C5: -16800 | D5: -0.06339622642
A6: = | B6: Deckungsbeitrag 1 | C6: 134200 | D6: 0.5064150943
A7: - | B7: produktfixe Kosten | C7: -20800 | D7: -0.07849056604
A8: = | B8: Deckungsbeitrag 2 | C8: 113400 | D8: 0.4279245283
A9: - | B9: produktgruppenfixe Kosten | C9: -12900 | D9: -0.04867924528
A10: = | B10: Deckungsbeitrag 3 | C10: =C8+C9 -> 100500 | D10: 0.379245283
A11: - | B11: bereichsfixe Kosten | C11: -16800 | D11: -0.06339622642
A12: = | B12: Deckungsbeitrag 4 | C12: =C10+C11 -> 83700 | D12: 0.3158490566

Sheet DBR Gesamt
B1: Gesamt | C1: Wert | D1: Anteil
B2: Umsatzerlöse | C2: 899000 | D2: 1
A3: - | B3: variable Kosten | C3: -146600 | D3: =C3/C$2 -> -0.1630700779
A4: = | B4: Nettoumsatz | C4: 752400 | D4: =C4/C$2 -> 0.8369299221
A5: - | B5: direkte Herstellkosten | C5: -301800 | D5: -0.3357063404
A6: = | B6: Deckungsbeitrag 1 | C6: 450600 | D6: 0.5012235818
A7: - | B7: produktfixe Kosten | C7: -65100 | D7: -0.0724137931
A8: = | B8: Deckungsbeitrag 2 | C8: 385500 | D8: 0.4288097887
A9: - | B9: produktgruppenfixe Kosten | C9: -39600 | D9: -0.04404894327
A10: = | B10: Deckungsbeitrag 3 | C10: 345900 | D10: 0.3847608454
A11: - | B11: bereichsfixe Kosten | C11: -35800 | D11: -0.03982202447
A12: = | B12: Deckungsbeitrag 4 | C12: 310100 | D12: 0.3449388209
A13: - | B13: unternehmensfixe Kosten | C13: -61600 | D13: -0.06852057842
A14: = | B14: Betriebserlös | C14: =C12+C13 -> 248500 | D14: 0.2764182425
